[Event "*** Titled Tuesday 3|2 Blitz"]
[Site "Chess.com"]
[Date "2015.06.02"]
[Round "1"]
[White "iFrancisco"]
[Black "lexiel"]
[Result "1-0"]
[WhiteElo "2311"]
[BlackElo "1849"]
[TimeControl "180+2"]
[EndTime "11:08:15 PDT"]
[Termination "iFrancisco won by resignation"]

1. e4 {[%clk 0:03:01.9]} 1... c5 {[%clk 0:02:58.7]} 2. Nf3 {[%clk 0:03:01.4]}
2... d6 {[%clk 0:02:58.4]} 3. d4 {[%clk 0:03:02.6]} 3... cxd4 {[%clk 0:02:59]}
4. Nxd4 {[%clk 0:03:04.5]} 4... Nf6 {[%clk 0:03:00.6]} 5. Nc3 {[%clk 0:03:05.7]}
5... Nc6 {[%clk 0:03:01.7]} 6. Be2 {[%clk 0:03:07.1]} 6... g6 {[%clk 0:03:00.6]}
7. Be3 {[%clk 0:03:06.3]} 7... Bg7 {[%clk 0:03:01.4]} 8. O-O {[%clk 0:03:07.4]}
8... O-O {[%clk 0:03:02.5]} 9. f4 {[%clk 0:03:08.4]} 9... Bd7 {[%clk 0:03:01.5]}
10. Nb3 {[%clk 0:03:09.1]} 10... a5 {[%clk 0:03:02]} 11. a4 {[%clk 0:03:09.2]}
11... Rc8 {[%clk 0:03:01.9]} 12. Bf3 {[%clk 0:03:06.8]} 12... Be6 {[%clk
0:02:59.9]} 13. Nd4 {[%clk 0:03:00.2]} 13... Bc4 {[%clk 0:02:59.7]} 14. Rf2
{[%clk 0:03:01.1]} 14... Nd7 {[%clk 0:02:59.2]} 15. b3 {[%clk 0:02:22.9]} 15...
Ba6 {[%clk 0:02:42.2]} 16. Ncb5 {[%clk 0:02:11.2]} 16... Nb4 {[%clk 0:02:37]}
17. c4 {[%clk 0:02:00.2]} 17... Nc5 {[%clk 0:02:34.2]} 18. Rb1 {[%clk
0:01:57.8]} 18... b6 {[%clk 0:02:32.8]} 19. Rd2 {[%clk 0:01:52.9]} 19... Bb7
{[%clk 0:02:29.6]} 20. Nc3 {[%clk 0:01:54]} 20... Qe8 {[%clk 0:02:16.3]} 21. Nd5
{[%clk 0:01:53.3]} 21... Nxd5 {[%clk 0:02:12.3]} 22. exd5 {[%clk 0:01:54.8]}
22... Rd8 {[%clk 0:02:02.3]} 23. g3 {[%clk 0:01:37.7]} 23... e5 {[%clk
0:01:55.8]} 24. dxe6 {[%clk 0:01:36.7]} 24... fxe6 {[%clk 0:01:54.7]} 25. Bxb7
{[%clk 0:01:24.5]} 25... Nxb7 {[%clk 0:01:55.7]} 26. Nb5 {[%clk 0:01:26.4]}
26... d5 {[%clk 0:01:56.3]} 27. Bxb6 {[%clk 0:01:26.5]} 27... Rb8 {[%clk
0:01:53.1]} 28. cxd5 {[%clk 0:01:10.6]} 28... exd5 {[%clk 0:01:51.2]} 29. Bf2
{[%clk 0:01:11.1]} 29... Qe4 {[%clk 0:01:43]} 30. Rxd5 {[%clk 0:00:53.8]} 30...
Nd8 {[%clk 0:01:38.7]} 31. Qd3 {[%clk 0:00:48.6]} 31... Qe6 {[%clk 0:01:34.4]}
32. Re1 {[%clk 0:00:48.6]} 32... Qh3 {[%clk 0:01:34]} 33. Bc5 {[%clk 0:00:45.4]}
33... Nf7 {[%clk 0:01:30.5]} 34. Bxf8 {[%clk 0:00:45.5]} 34... Rxf8 {[%clk
0:01:32.4]} 35. Nc7 {[%clk 0:00:30.9]} 35... Qc8 {[%clk 0:01:15.3]} 36. Qc4
{[%clk 0:00:22.4]} 36... Qb8 {[%clk 0:01:05.2]} 37. Ne6 {[%clk 0:00:19.2]} 37...
Qb6+ {[%clk 0:01:03.8]} 38. Kg2 {[%clk 0:00:17.5]} 38... Re8 {[%clk 0:01:03.6]}
39. Re4 {[%clk 0:00:14.1]} 39... Nd6 {[%clk 0:01:01.6]} 40. Rxd6 {[%clk
0:00:11.9]} 40... Qxd6 {[%clk 0:01:02.1]} 41. Nc7+ {[%clk 0:00:13.4]} 1-0

[Event "*** Titled Tuesday 3|2 Blitz"]
[Site "Chess.com"]
[Date "2015.06.02"]
[Round "1"]
[White "GGuseinov"]
[Black "goldaxe"]
[Result "1-0"]
[WhiteElo "2533"]
[BlackElo "2160"]
[TimeControl "180+2"]
[EndTime "11:08:40 PDT"]
[Termination "GGuseinov won on time"]

1. e4 {[%clk 0:02:59.5]} 1... e5 {[%clk 0:02:59.6]} 2. Nf3 {[%clk 0:03:00.5]}
2... Nc6 {[%clk 0:03:00.4]} 3. Bb5 {[%clk 0:03:00.4]} 3... a6 {[%clk 0:02:57.9]}
4. Bxc6 {[%clk 0:03:01]} 4... dxc6 {[%clk 0:02:57.9]} 5. O-O {[%clk 0:02:57.1]}
5... Bg4 {[%clk 0:02:54.1]} 6. h3 {[%clk 0:02:53.3]} 6... Bh5 {[%clk 0:02:54.5]}
7. g4 {[%clk 0:02:53.4]} 7... Bg6 {[%clk 0:02:55.3]} 8. Nxe5 {[%clk 0:02:54.4]}
8... Qh4 {[%clk 0:02:55.1]} 9. Qf3 {[%clk 0:02:50.7]} 9... f6 {[%clk 0:02:56.1]}
10. Nxg6 {[%clk 0:02:50.8]} 10... hxg6 {[%clk 0:02:58]} 11. Kg2 {[%clk 0:02:52]}
11... g5 {[%clk 0:02:35.7]} 12. d3 {[%clk 0:02:42.8]} 12... Bd6 {[%clk
0:02:35.8]} 13. Nd2 {[%clk 0:02:40.6]} 13... Ne7 {[%clk 0:02:36.3]} 14. Nc4
{[%clk 0:02:35.5]} 14... O-O-O {[%clk 0:02:26.3]} 15. Be3 {[%clk 0:02:25.1]}
15... Ng6 {[%clk 0:02:19.5]} 16. Rh1 {[%clk 0:02:14.7]} 16... Qh7 {[%clk
0:02:10.5]} 17. Qf5+ {[%clk 0:02:03.2]} 17... Kb8 {[%clk 0:02:10.3]} 18. Kf1
{[%clk 0:02:04.4]} 18... Bf4 {[%clk 0:01:56.2]} 19. Bxf4 {[%clk 0:02:00]} 19...
Nxf4 {[%clk 0:01:55.2]} 20. Qxh7 {[%clk 0:01:56.9]} 20... Rxh7 {[%clk
0:01:56.7]} 21. Re1 {[%clk 0:01:50.6]} 21... Rxh3 {[%clk 0:01:46.2]} 22. Rxh3
{[%clk 0:01:49.4]} 22... Nxh3 {[%clk 0:01:48.1]} 23. e5 {[%clk 0:01:51]} 23...
Re8 {[%clk 0:00:56.3]} 24. Re3 {[%clk 0:01:43.1]} 24... Nf4 {[%clk 0:00:55.5]}
25. exf6 {[%clk 0:01:44.1]} 25... Rh8 {[%clk 0:00:44.7]} 26. Kg1 {[%clk
0:01:31]} 26... gxf6 {[%clk 0:00:44.9]} 27. Nd2 {[%clk 0:01:31.2]} 27... Rh4
{[%clk 0:00:39.6]} 28. f3 {[%clk 0:01:29.3]} 28... Rh3 {[%clk 0:00:33.8]} 29.
Ne4 {[%clk 0:01:18.9]} 29... Nd5 {[%clk 0:00:26.1]} 30. Kg2 {[%clk 0:01:19.4]}
30... Nxe3+ {[%clk 0:00:10.1]} 31. Kxh3 {[%clk 0:01:19.9]} 31... Nxc2 {[%clk
0:00:11.1]} 32. Nxf6 {[%clk 0:01:21]} 32... Ne1 {[%clk 0:00:12.3]} 33. f4 {[%clk
0:01:20.3]} 33... gxf4 {[%clk 0:00:06.4]} 34. g5 {[%clk 0:01:21.6]} 34... f3
{[%clk 0:00:02.7]} 35. Kg3 {[%clk 0:01:20.1]} 35... Nxd3 {[%clk 0:00:03]} 36.
Kxf3 {[%clk 0:01:14.7]} 36... Ne5+ {[%clk 0:00:03.5]} 37. Kf4 {[%clk 0:01:12.5]}
37... Ng6+ {[%clk 0:00:04.6]} 38. Kf5 {[%clk 0:01:14]} 38... Nh4+ {[%clk
0:00:05.8]} 39. Kg4 {[%clk 0:00:59.5]} 39... Ng6 {[%clk 0:00:06.4]} 40. Kh5
{[%clk 0:01:01.2]} 40... Nf4+ {[%clk 0:00:07.5]} 41. Kh6 {[%clk 0:01:02.9]}
41... c5 {[%clk 0:00:07.7]} 42. Nh5 {[%clk 0:01:03.8]} 42... Ne6 {[%clk
0:00:07.5]} 43. g6 {[%clk 0:01:05]} 43... c4 {[%clk 0:00:08.4]} 44. Nf4 {[%clk
0:01:05.6]} 44... Nxf4 {[%clk 0:00:02.1]} 45. g7 {[%clk 0:01:06.8]} 1-0

[Event "*** Titled Tuesday 3|2 Blitz"]
[Site "Chess.com"]
[Date "2015.06.02"]
[Round "1"]
[White "grandmastergauri"]
[Black "MinhGTrAn"]
[Result "1-0"]
[WhiteElo "2279"]
[BlackElo "2570"]
[TimeControl "180+2"]
[EndTime "11:08:48 PDT"]
[Termination "grandmastergauri won on time"]

1. e4 {[%clk 0:02:59.3]} 1... c5 {[%clk 0:03:00.4]} 2. Nf3 {[%clk 0:02:58.6]}
2... d6 {[%clk 0:03:01.8]} 3. d4 {[%clk 0:02:58.8]} 3... cxd4 {[%clk 0:03:03.7]}
4. Nxd4 {[%clk 0:03:00.3]} 4... Nf6 {[%clk 0:03:04.4]} 5. Nc3 {[%clk 0:03:01.7]}
5... a6 {[%clk 0:03:04.7]} 6. g3 {[%clk 0:03:01.3]} 6... e5 {[%clk 0:03:04.3]}
7. Nb3 {[%clk 0:03:02]} 7... Be6 {[%clk 0:03:05.9]} 8. Bg2 {[%clk 0:03:02.2]}
8... Nbd7 {[%clk 0:03:07.1]} 9. O-O {[%clk 0:02:59.4]} 9... Be7 {[%clk
0:03:08.6]} 10. a4 {[%clk 0:02:56.4]} 10... O-O {[%clk 0:03:08.5]} 11. Kh1
{[%clk 0:02:57.2]} 11... Rc8 {[%clk 0:03:09.2]} 12. f4 {[%clk 0:02:56.7]} 12...
b5 {[%clk 0:02:56.8]} 13. axb5 {[%clk 0:02:54.2]} 13... axb5 {[%clk 0:02:58.7]}
14. Na5 {[%clk 0:02:24]} 14... b4 {[%clk 0:02:52.7]} 15. Nd5 {[%clk 0:02:24.5]}
15... Bxd5 {[%clk 0:02:07]} 16. exd5 {[%clk 0:02:24.1]} 16... Qb6 {[%clk
0:02:08.5]} 17. Nc6 {[%clk 0:02:22.1]} 17... Rfe8 {[%clk 0:02:09.9]} 18. Re1
{[%clk 0:02:07.9]} 18... Bf8 {[%clk 0:02:09.2]} 19. Be3 {[%clk 0:02:08.6]} 19...
Nc5 {[%clk 0:01:50.1]} 20. fxe5 {[%clk 0:01:55.9]} 20... dxe5 {[%clk 0:01:52]}
21. Ra4 {[%clk 0:01:49.3]} 21... b3 {[%clk 0:01:06.2]} 22. c4 {[%clk 0:01:41.2]}
22... Qc7 {[%clk 0:00:47.3]} 23. Ra7 {[%clk 0:01:40.3]} 23... Qd6 {[%clk
0:00:48.7]} 24. Bg1 {[%clk 0:01:32.7]} 24... Nfd7 {[%clk 0:00:42]} 25. Qg4
{[%clk 0:01:22]} 25... Ra8 {[%clk 0:00:37.8]} 26. Rea1 {[%clk 0:01:04.8]} 26...
Rxa7 {[%clk 0:00:36.5]} 27. Rxa7 {[%clk 0:01:06.7]} 27... e4 {[%clk 0:00:33.9]}
28. Be3 {[%clk 0:01:07.8]} 28... Nf6 {[%clk 0:00:21.1]} 29. Qf5 {[%clk
0:00:53.9]} 29... Nd3 {[%clk 0:00:20]} 30. Bd4 {[%clk 0:00:50.8]} 30... e3
{[%clk 0:00:12.7]} 31. Qxd3 {[%clk 0:00:35.2]} 31... e2 {[%clk 0:00:13.7]} 32.
Bc3 {[%clk 0:00:32.2]} 32... e1=Q+ {[%clk 0:00:12.3]} 33. Bxe1 {[%clk
0:00:33.5]} 33... Rxe1+ {[%clk 0:00:14.2]} 34. Bf1 {[%clk 0:00:35.3]} 34... Qc5
{[%clk 0:00:10.4]} 35. Kg2 {[%clk 0:00:27.9]} 35... Ng4 {[%clk 0:00:09.8]} 36.
Qd4 {[%clk 0:00:25.5]} 36... Ne3+ {[%clk 0:00:05.9]} 37. Kf2 {[%clk 0:00:26.8]}
37... Rxf1+ {[%clk 0:00:04.4]} 38. Kxe3 {[%clk 0:00:28.2]} 38... Re1+ {[%clk
0:00:03.3]} 39. Kd2 {[%clk 0:00:28.5]} 39... Rf1 {[%clk 0:00:04.1]} 40. Qxc5
{[%clk 0:00:29.1]} 1-0

[Event "*** Titled Tuesday 3|2 Blitz"]
[Site "Chess.com"]
[Date "2015.06.02"]
[Round "1"]
[White "Danirod"]
[Black "amandarm"]
[Result "1-0"]
[WhiteElo "2399"]
[BlackElo "2028"]
[TimeControl "180+2"]
[EndTime "11:08:52 PDT"]
[Termination "Danirod won by resignation"]

1. e4 {[%clk 0:03:01]} 1... c5 {[%clk 0:02:38.8]} 2. Nf3 {[%clk 0:03:01.4]} 2...
e6 {[%clk 0:02:40.7]} 3. c3 {[%clk 0:03:02]} 3... d5 {[%clk 0:02:40.7]} 4. exd5
{[%clk 0:03:02.8]} 4... exd5 {[%clk 0:02:42.4]} 5. d4 {[%clk 0:03:03.7]} 5...
cxd4 {[%clk 0:02:43.5]} 6. Nxd4 {[%clk 0:03:04.4]} 6... Nc6 {[%clk 0:02:45.1]}
7. Bb5 {[%clk 0:03:04.9]} 7... Bd7 {[%clk 0:02:45.1]} 8. O-O {[%clk 0:03:05.5]}
8... Nf6 {[%clk 0:02:45.6]} 9. Bg5 {[%clk 0:03:05.9]} 9... Be7 {[%clk
0:02:46.6]} 10. Re1 {[%clk 0:03:06.2]} 10... O-O {[%clk 0:02:47]} 11. Qa4 {[%clk
0:02:31.9]} 11... Nxd4 {[%clk 0:02:14.5]} 12. Bxd7 {[%clk 0:02:29.5]} 12... Nc2
{[%clk 0:02:03.2]} 13. Qxc2 {[%clk 0:02:26.4]} 13... Qxd7 {[%clk 0:02:04.3]} 14.
Nd2 {[%clk 0:02:26.9]} 14... Rac8 {[%clk 0:02:03.2]} 15. Qd3 {[%clk 0:02:19.4]}
15... Rfd8 {[%clk 0:01:59.3]} 16. Rad1 {[%clk 0:02:16.6]} 16... h6 {[%clk
0:01:52]} 17. Bh4 {[%clk 0:02:17.1]} 17... b5 {[%clk 0:01:38.5]} 18. Nf3 {[%clk
0:02:12.1]} 18... a6 {[%clk 0:01:30.8]} 19. Ne5 {[%clk 0:02:07.8]} 19... Qd6
{[%clk 0:01:24.5]} 20. Bg3 {[%clk 0:02:08.8]} 20... Qc5 {[%clk 0:01:16.6]} 21.
Nf3 {[%clk 0:02:02.7]} 21... Ne4 {[%clk 0:01:13.8]} 22. Nd4 {[%clk 0:02:03.7]}
22... Nxg3 {[%clk 0:01:13.6]} 23. hxg3 {[%clk 0:02:04.5]} 23... Bf6 {[%clk
0:01:12.9]} 24. Nf5 {[%clk 0:01:56.1]} 24... Qc4 {[%clk 0:01:08.3]} 25. a3
{[%clk 0:01:52.5]} 25... Qg4 {[%clk 0:00:55.6]} 26. f3 {[%clk 0:01:47.4]} 26...
Qc4 {[%clk 0:00:55.1]} 27. Ne7+ {[%clk 0:01:45.1]} 27... Bxe7 {[%clk 0:00:54.9]}
28. Rxe7 {[%clk 0:01:47]} 28... Qc5+ {[%clk 0:00:55.8]} 29. Qe3 {[%clk
0:01:47.3]} 29... Qxe3+ {[%clk 0:00:43]} 30. Rxe3 {[%clk 0:01:47.8]} 30... Rc5
{[%clk 0:00:28.3]} 31. Rd4 {[%clk 0:01:39.9]} 31... Kf8 {[%clk 0:00:28.1]} 32.
g4 {[%clk 0:01:40.8]} 32... f6 {[%clk 0:00:28.9]} 33. Kf2 {[%clk 0:01:41.9]}
33... Kf7 {[%clk 0:00:30.2]} 34. Kg3 {[%clk 0:01:43]} 34... g6 {[%clk
0:00:31.4]} 35. Kf4 {[%clk 0:01:43.7]} 35... Rd6 {[%clk 0:00:30.4]} 36. Red3
{[%clk 0:01:44.6]} 36... Ke6 {[%clk 0:00:30.9]} 37. Re3+ {[%clk 0:01:42.7]}
37... Kd7 {[%clk 0:00:32.1]} 38. Kg3 {[%clk 0:01:38.2]} 38... Rc4 {[%clk
0:00:29.8]} 39. Red3 {[%clk 0:01:34.8]} 39... Rxd4 {[%clk 0:00:30.3]} 40. Rxd4
{[%clk 0:01:36.7]} 40... Ke6 {[%clk 0:00:31.6]} 41. Kf4 {[%clk 0:01:34]} 41...
g5+ {[%clk 0:00:30.5]} 42. Ke3 {[%clk 0:01:35]} 42... f5 {[%clk 0:00:31.5]} 43.
gxf5+ {[%clk 0:01:35.6]} 43... Kxf5 {[%clk 0:00:33.4]} 44. g4+ {[%clk
0:01:37.5]} 44... Ke5 {[%clk 0:00:34.1]} 45. a4 {[%clk 0:01:38.5]} 45... Rb6
{[%clk 0:00:32.8]} 46. a5 {[%clk 0:01:31.3]} 46... Rc6 {[%clk 0:00:33.8]} 47.
f4+ {[%clk 0:01:22.9]} 47... gxf4+ {[%clk 0:00:33.5]} 48. Rxf4 {[%clk
0:01:24.6]} 48... Rc4 {[%clk 0:00:34.5]} 49. Rf5+ {[%clk 0:01:23.6]} 49... Ke6
{[%clk 0:00:35.8]} 50. Rh5 {[%clk 0:01:24]} 50... Rxg4 {[%clk 0:00:29.8]} 51.
Rxh6+ {[%clk 0:01:24.9]} 51... Ke5 {[%clk 0:00:31.2]} 52. Rxa6 {[%clk
0:01:24.6]} 52... Rg3+ {[%clk 0:00:31.7]} 53. Kd2 {[%clk 0:01:26]} 53... Rg2+
{[%clk 0:00:32.4]} 54. Kc1 {[%clk 0:01:26.8]} 54... Ke4 {[%clk 0:00:31.1]} 55.
Rd6 {[%clk 0:01:27.8]} 55... Rg1+ {[%clk 0:00:29.8]} 56. Kc2 {[%clk 0:01:28.9]}
56... Rg2+ {[%clk 0:00:31.7]} 57. Kb3 {[%clk 0:01:29.9]} 57... Rg7 {[%clk
0:00:31.5]} 58. Rb6 {[%clk 0:01:30.5]} 58... Ra7 {[%clk 0:00:22.6]} 59. Rxb5
{[%clk 0:01:31.2]} 59... Ke5 {[%clk 0:00:23.2]} 60. c4 {[%clk 0:01:31.8]} 60...
Kd6 {[%clk 0:00:20.5]} 61. Rxd5+ {[%clk 0:01:32.8]} 61... Kc6 {[%clk 0:00:22]}
62. Ka4 {[%clk 0:01:33.9]} 62... Ra6 {[%clk 0:00:22.1]} 63. b4 {[%clk
0:01:34.1]} 63... Ra7 {[%clk 0:00:24]} 64. b5+ {[%clk 0:01:35.3]} 64... Kc7
{[%clk 0:00:25.3]} 65. b6+ {[%clk 0:01:36.4]} 1-0

[Event "*** Titled Tuesday 3|2 Blitz"]
[Site "Chess.com"]
[Date "2015.06.02"]
[Round "1"]
[White "jup1978"]
[Black "jcibarra"]
[Result "0-1"]
[WhiteElo "2177"]
[BlackElo "2535"]
[TimeControl "180+2"]
[EndTime "11:09:02 PDT"]
[Termination "jcibarra won by resignation"]

1. Nf3 {[%clk 0:02:54]} 1... Nf6 {[%clk 0:03:00.4]} 2. g3 {[%clk 0:02:52.5]}
2... g6 {[%clk 0:03:01.4]} 3. Bg2 {[%clk 0:02:53.8]} 3... Bg7 {[%clk 0:03:02.9]}
4. O-O {[%clk 0:02:54.3]} 4... O-O {[%clk 0:03:04.3]} 5. d4 {[%clk 0:02:55.4]}
5... d6 {[%clk 0:03:05.5]} 6. c3 {[%clk 0:02:56.8]} 6... Nbd7 {[%clk 0:03:04.5]}
7. Re1 {[%clk 0:02:55.4]} 7... e5 {[%clk 0:03:05.4]} 8. dxe5 {[%clk 0:02:56.2]}
8... dxe5 {[%clk 0:03:06.9]} 9. Bg5 {[%clk 0:02:57.1]} 9... h6 {[%clk
0:03:06.6]} 10. Bxf6 {[%clk 0:02:58.2]} 10... Qxf6 {[%clk 0:03:07.9]} 11. e4
{[%clk 0:02:57]} 11... Qe7 {[%clk 0:03:08.1]} 12. Nbd2 {[%clk 0:02:56.1]} 12...
b6 {[%clk 0:03:08.8]} 13. Qb3 {[%clk 0:02:52.9]} 13... Nc5 {[%clk 0:03:08.4]}
14. Qc2 {[%clk 0:02:52.1]} 14... a5 {[%clk 0:03:09]} 15. Nb3 {[%clk 0:02:52.2]}
15... Ne6 {[%clk 0:03:06.1]} 16. Rad1 {[%clk 0:02:52]} 16... Bb7 {[%clk
0:03:05.6]} 17. h3 {[%clk 0:02:47]} 17... Kh7 {[%clk 0:03:02]} 18. Nh2 {[%clk
0:02:47.8]} 18... h5 {[%clk 0:03:01.3]} 19. Nf1 {[%clk 0:02:48.2]} 19... h4
{[%clk 0:03:01.3]} 20. g4 {[%clk 0:02:38.8]} 20... Nf4 {[%clk 0:02:58]} 21. Ne3
{[%clk 0:02:36.6]} 21... a4 {[%clk 0:02:58.8]} 22. Nd2 {[%clk 0:02:33.5]} 22...
Qc5 {[%clk 0:02:58.9]} 23. Nf3 {[%clk 0:02:27.4]} 23... Bf6 {[%clk 0:02:38.4]}
24. g5 {[%clk 0:02:17.8]} 24... Be7 {[%clk 0:02:35.2]} 25. Ng4 {[%clk
0:02:07.7]} 25... Rae8 {[%clk 0:02:26.3]} 26. Qd2 {[%clk 0:02:07.5]} 26... Rd8
{[%clk 0:02:17.8]} 27. Qc2 {[%clk 0:02:04.8]} 27... Ne6 {[%clk 0:02:17.5]} 28.
Nfxe5 {[%clk 0:01:53.4]} 28... Bd6 {[%clk 0:01:47.1]} 29. Nf3 {[%clk 0:01:46.7]}
29... Nxg5 {[%clk 0:01:46.7]} 30. Rd5 {[%clk 0:01:36.8]} 30... Nxf3+ {[%clk
0:01:44.2]} 31. Bxf3 {[%clk 0:01:37.1]} 31... Bxd5 {[%clk 0:01:45.6]} 32. exd5
{[%clk 0:01:34.3]} 32... f5 {[%clk 0:01:45.3]} 33. Ne3 {[%clk 0:01:24.8]} 33...
b5 {[%clk 0:01:45.9]} 34. Ng2 {[%clk 0:01:23.1]} 34... Rde8 {[%clk 0:01:38.6]}
35. Rd1 {[%clk 0:01:17.3]} 35... Kg7 {[%clk 0:01:27.3]} 36. Nxh4 {[%clk
0:01:11.8]} 36... Qc4 {[%clk 0:01:25.1]} 37. Ng2 {[%clk 0:01:10.2]} 37... Qxa2
{[%clk 0:01:23.5]} 38. h4 {[%clk 0:01:05.9]} 38... a3 {[%clk 0:01:21.3]} 39. h5
{[%clk 0:01:06.4]} 39... Qxb2 {[%clk 0:01:21.4]} 40. Qd3 {[%clk 0:01:07]} 40...
a2 {[%clk 0:01:21.2]} 41. Qd4+ {[%clk 0:00:55.6]} 41... Be5 {[%clk 0:01:18.8]}
42. Qa7 {[%clk 0:00:54.1]} 42... Ra8 {[%clk 0:01:17]} 43. Qc5 {[%clk 0:00:54.5]}
43... Qxc3 {[%clk 0:01:03.9]} 44. Qe7+ {[%clk 0:00:54.7]} 44... Rf7 {[%clk
0:01:02.2]} 45. Qe6 {[%clk 0:00:51.8]} 45... Bf6 {[%clk 0:00:55.1]} 46. h6+
{[%clk 0:00:50.7]} 46... Kf8 {[%clk 0:00:47.5]} 47. Nf4 {[%clk 0:00:45.1]} 47...
Qxf3 {[%clk 0:00:39.4]} 48. Nxg6+ {[%clk 0:00:45.5]} 48... Kg8 {[%clk
0:00:39.7]} 49. Ne7+ {[%clk 0:00:46.5]} 49... Bxe7 {[%clk 0:00:36.4]} 50. Qg6+
{[%clk 0:00:42.7]} 50... Kh8 {[%clk 0:00:31.5]} 0-1

[Event "*** Titled Tuesday 3|2 Blitz"]
[Site "Chess.com"]
[Date "2015.06.02"]
[Round "1"]
[White "esr44"]
[Black "petrpalachev"]
[Result "0-1"]
[WhiteElo "2017"]
[BlackElo "2385"]
[TimeControl "180+2"]
[EndTime "11:09:07 PDT"]
[Termination "petrpalachev won by resignation"]

1. d4 {[%clk 0:03:01.9]} 1... Nf6 {[%clk 0:02:03.7]} 2. c4 {[%clk 0:03:02.4]}
2... e6 {[%clk 0:02:05.6]} 3. Nc3 {[%clk 0:03:03.3]} 3... Bb4 {[%clk 0:02:07]}
4. Nf3 {[%clk 0:03:04.6]} 4... d5 {[%clk 0:02:07.7]} 5. Qa4+ {[%clk 0:03:01.6]}
5... Nc6 {[%clk 0:02:08]} 6. Bg5 {[%clk 0:03:02.2]} 6... h6 {[%clk 0:02:07.8]}
7. Bxf6 {[%clk 0:02:59.5]} 7... Qxf6 {[%clk 0:02:09.7]} 8. e3 {[%clk 0:02:58.6]}
8... O-O {[%clk 0:02:04.5]} 9. cxd5 {[%clk 0:02:54.7]} 9... exd5 {[%clk
0:02:05]} 10. Be2 {[%clk 0:02:56.3]} 10... Bf5 {[%clk 0:01:58]} 11. O-O {[%clk
0:02:56]} 11... Rfd8 {[%clk 0:01:48.2]} 12. Rac1 {[%clk 0:02:52.3]} 12... a6
{[%clk 0:01:45.2]} 13. h3 {[%clk 0:02:17.2]} 13... Bf8 {[%clk 0:01:37.1]} 14.
Qb3 {[%clk 0:02:08.3]} 14... Qd6 {[%clk 0:01:37.1]} 15. Rfd1 {[%clk 0:01:38.1]}
15... b5 {[%clk 0:01:28.1]} 16. Ne5 {[%clk 0:01:09]} 16... Na5 {[%clk
0:01:25.3]} 17. Qa3 {[%clk 0:00:57.9]} 17... Qxa3 {[%clk 0:01:25.8]} 18. bxa3
{[%clk 0:00:59.1]} 18... Bxa3 {[%clk 0:01:27.7]} 19. Bf3 {[%clk 0:00:46.1]}
19... Bxc1 {[%clk 0:01:27.6]} 20. Rxc1 {[%clk 0:00:48]} 20... Be6 {[%clk
0:01:23.2]} 21. Ne2 {[%clk 0:00:45.7]} 21... Nc4 {[%clk 0:01:23.4]} 22. Nf4
{[%clk 0:00:42.6]} 22... Nxe5 {[%clk 0:01:05.5]} 23. dxe5 {[%clk 0:00:43.5]}
23... Rac8 {[%clk 0:01:02.6]} 24. Rc6 {[%clk 0:00:44]} 24... d4 {[%clk
0:00:57.5]} 25. Nxe6 {[%clk 0:00:30.9]} 25... fxe6 {[%clk 0:00:57.9]} 26. exd4
{[%clk 0:00:32.4]} 26... Kf7 {[%clk 0:00:56.3]} 27. Bg4 {[%clk 0:00:29.8]} 27...
Re8 {[%clk 0:00:36.4]} 28. d5 {[%clk 0:00:26.1]} 28... exd5 {[%clk 0:00:36]} 29.
Bxc8 {[%clk 0:00:20]} 29... Rxc8 {[%clk 0:00:37.9]} 30. f4 {[%clk 0:00:21.1]}
30... Ke7 {[%clk 0:00:31.5]} 31. f5 {[%clk 0:00:20]} 31... Kd7 {[%clk
0:00:32.6]} 32. Rxa6 {[%clk 0:00:20.9]} 32... c5 {[%clk 0:00:32.3]} 33. Ra7+
{[%clk 0:00:21]} 33... Rc7 {[%clk 0:00:33.4]} 34. e6+ {[%clk 0:00:22.3]} 34...
Kd6 {[%clk 0:00:32.6]} 35. Ra8 {[%clk 0:00:20.4]} 35... c4 {[%clk 0:00:25.4]}
36. Rd8+ {[%clk 0:00:21]} 36... Ke5 {[%clk 0:00:21.3]} 37. g4 {[%clk 0:00:20.6]}
37... c3 {[%clk 0:00:21.8]} 38. Rd7 {[%clk 0:00:19]} 38... Rc8 {[%clk
0:00:22.3]} 39. e7 {[%clk 0:00:19]} 39... Re8 {[%clk 0:00:21.8]} 40. Rc7 {[%clk
0:00:16.4]} 40... b4 {[%clk 0:00:22.6]} 41. a3 {[%clk 0:00:15]} 41... Kd6 {[%clk
0:00:23.7]} 42. Rb7 {[%clk 0:00:04]} 42... bxa3 {[%clk 0:00:21.9]} 43. Rb3
{[%clk 0:00:03.3]} 43... a2 {[%clk 0:00:22.8]} 44. Ra3 {[%clk 0:00:03.3]} 44...
c2 {[%clk 0:00:24.3]} 45. Ra6+ {[%clk 0:00:04.5]} 45... Kxe7 {[%clk 0:00:24.9]}
46. Re6+ {[%clk 0:00:05.8]} 46... Kf7 {[%clk 0:00:26.2]} 0-1